Cogmind - Beta 16 @@@ ROGUE MODE // 2025.11.03 @ 21:13:10 Player: Cameron Result: Destroyed by HM-YTV(R) with Subdweller Laser Performance ------------- Evolutions (0) 0 Regions Visited (2) 400 Robots Destroyed (23) 115 Value Destroyed (557) 557 Prototype IDs (4) 80 Alien Tech Used (0) 0 Bonus (-17) -17 TOTAL SCORE: 1135 Bonus ------- Friendly Fire -17 Cogmind --------- Core Integrity 0/250 Matter 280/300 Energy 75/250 System Corruption 8% Temperature Cool (6) Movement Walking (190) Ox1 Location -10/Subcaves Parts ------- > --- POWER (1) -------- Ion Engine > --- PROPULSION (2) --- Aluminum Leg > --- UTILITY (2) ------ Medium Storage Unit Machine Analyzer > --- WEAPON (2) ------- Particle Gun Mini Grenade Launcher > --- INVENTORY (10) --- Ion Engine Compact Wheel Cooling System Cooling System Small Storage Unit Hacking Suite Grenade Launcher Peak State ------------ > --- POWER ------------ Ion Engine > --- PROPULSION ------- Aluminum Leg Aluminum Leg > --- UTILITY ---------- Medium Storage Unit Machine Analyzer > --- WEAPON ----------- Particle Gun Mini Grenade Launcher > --- INVENTORY -------- Ion Engine Ion Engine Aluminum Leg Compact Wheel Cooling System Cooling System Small Storage Unit Hacking Suite Grenade Launcher [Rating: 12] Favorites ----------- Power Ion Engine Engine Ion Engine Propulsion Aluminum Leg Leg Aluminum Leg Utility Cooling System Device Cooling System Storage Small Storage Unit Processor Machine Analyzer Weapon EM Pulse Gun Energy Gun EM Pulse Gun Launcher Mini Grenade Launcher Special Weapon Mining Laser Special Melee Weapon Datajack Build | -11 -10 -10 ------- Run | Yrd Mat Sub Slots Evolved . | . . . Power . | . . . Propulsion . | . . . Utility . | . . . Weapon . | . . . Parts Attached 19 | 7 10 2 Power 2 | 1 1 . Engine 2 | 1 1 . Core . | . . . Reactor . | . . . Propulsion 6 | 2 4 . Treads . | . . . Leg 6 | 2 4 . Wheel . | . . . Hover . | . . . Flight . | . . . Utility 5 | 2 2 1 Device 2 | 1 1 . Storage 2 | 1 1 . Processor 1 | . . 1 Hackware . | . . . Protection . | . . . Artifact . | . . . Weapon 6 | 2 3 1 Energy Gun 3 | 2 . 1 Energy Cannon . | . . . Ballistic Gun . | . . . Ballistic Cannon . | . . . Launcher 1 | . 1 . Special Weapon 1 | . 1 . Impact Weapon . | . . . Slashing Weapon . | . . . Piercing Weapon . | . . . Special Melee Weapon 1 | . 1 . Unidentified Prototypes . | . . . Parts Lost 7 | . 3 4 Power 1 | . . 1 Propulsion 2 | . . 2 Utility . | . . . Weapon 4 | . 3 1 Highest Loss Streak 3 | . 1 3 To Critical Strikes . | . . . Average Backups 8 | 2 8 8 Power 1 | . 1 2 Propulsion 1 | . 1 1 Utility 2 | . 2 3 Weapon 2 | . 3 1 Tool/Special . | . . . Unused Backups 12 | . 7 5 Power 1 | . . 1 Propulsion 2 | . 1 1 Utility 2 | . . 2 Weapon 7 | . 6 1 Tool/Special . | . . . Average Slot Usage (%) 97 | . 97 97 Engine 13 | . 14 13 Leg 27 | . 28 27 Device 13 | . 13 13 Storage 14 | . 14 14 Energy Gun 17 | . 18 14 Special Weapon 4 | . 2 12 Special Melee Weapon 3 | . 4 . Peak Build Rating 12 | 9 10 12 Average Rating 8 | 5 8 10 On Entrance 5 | . 9 8 Avg Prop Armor Cover (%) . | . . . Naked Turns . | . . . Heaviest Build 21 | 15 20 21 Greatest Support 20 | 20 20 20 Greatest Overweight (x) 4 | 4 . 1 Average Overweight (x) . | . . . Largest Inventory Capacity 10 | 8 10 10 Average Capacity 8 | 7 8 10 Most Carried 10 | 3 10 10 Average Carried 8 | 2 8 8 Final Capacity 10 | 8 10 10 Final Carried 10 | 3 10 7 Class Distribution -------------------- 65% | Mutant 34% | Scavenger-Mutant Dominant Class ---------------- Mutant | -10/Materials Scavenger-Mutant | -10/Subcaves Resources | -11 -10 -10 ----------- Run | Yrd Mat Sub Matter Collected 468 | 270 160 38 Remotely . | . . . Salvage Created 865 | 126 698 41 Parts 51 | 2 42 7 Haulers Intercepted . | . . . Recyclers Shooed 1 | . 1 . Parts Field Recycled . | . . . Retrieved Matter . | . . . Parts Self-Destructed 10 | . . 10 Prevented . | . . . Parts Restored . | . . . Kills | -11 -10 -10 ------- Run | Yrd Mat Sub Combat Hostiles Destroyed 17 | . 14 3 Guns 12 | . 9 3 AOE 5 | . 5 . Classes Destroyed 6 | 2 4 . Tunneler 1 | 1 . . Recycler 1 | 1 . . Operator 1 | . 1 . Watcher 3 | . 3 . Swarmer 6 | . 3 3 Grunt 11 | . 11 . Best Kill Streak 3 | 1 3 3 Combat Bots Only 3 | . 3 3 Max Kills in Single Turn 1 | 1 1 1 Gunslinging . | . . . Exploded 1 | . 1 . Melee . | . . . Uniques/NPCs Destroyed . | . . . Combat | -11 -10 -10 -------- Run | Yrd Mat Sub Hostile Shots Fired 90 | . 60 30 Missed 29 | . 21 8 Hits 61 | . 39 22 Projectile 61 | . 39 22 Damage Taken 1017 | . 679 338 Core 252 | . 161 91 Absorbed by Shields . | . . . Core Remaining (%) 100 | 100 . . Volleys Fired 83 | 11 52 20 Largest 2 | 2 2 1 Hottest 100 | 80 100 100 Shots Fired 123 | 22 80 21 Gun 107 | 22 70 15 Cannon . | . . . Launcher 3 | . 2 1 Special 13 | . 8 5 Kinetic . | . . . Thermal 28 | . 8 20 Explosive 3 | . 2 1 Electromagnetic 92 | 22 70 . Robot Hit Streak 14 | 7 14 3 Robot Miss Streak 7 | 3 3 7 Penetration Max . | . . . Secondary Targets 1 | . 1 . Max Gunslinging Chain 1 | . 1 . Shots Hit Robots 68 | 12 50 6 Core Hits 33 | 3 24 6 Critical Kills . | . . . Critical Parts Destroyed . | . . . Critical Strikes 2 | 1 1 . Corrupt 2 | 1 1 . Melee Attacks 1 | . 1 . Impact . | . . . Slashing . | . . . Piercing . | . . . Sneak Attacks 1 | . 1 . Combat Hostiles . | . . . Follow-up Attacks . | . . . Damage Inflicted 1412 | 216 893 303 Guns 917 | 180 640 97 Cannons . | . . . Explosions 483 | 24 253 206 Melee . | . . . Ramming 12 | 12 . . Kinetic . | . . . Thermal 272 | 24 151 97 Explosive 308 | . 102 206 Electromagnetic 820 | 180 640 . Impact . | . . . Slashing . | . . . Piercing . | . . . Highest Corruption 8 | . 8 8 Average Corruption 3 | . 2 8 Corruption Purged . | . . . Corruption Blocked . | . . . Effects 23 | . 12 11 Message Errors 7 | . 2 5 Matter Fused 6 | . 4 2 Heat Flow Errors 3 | . 2 1 Energy Discharges 3 | . 3 . Data Loss (minor) 2 | . . 2 Misfires 1 | . . 1 Alerts 1 | . 1 . Overload Shots . | . . . Overflow Damage . | . . . Projectiles . | . . . Explosions . | . . . Melee . | . . . Knockbacks . | . . . Impact . | . . . Kinetic . | . . . Secondary . | . . . Self-Inflicted Damage 41 | . 41 . Shots 2 | . 2 . Rammed . | . . . Targets Rammed 2 | 2 . . Kicked 2 | 2 . . Crushed . | . . . Highest Temperature 205 | 126 205 126 Average Temperature 64 | 55 105 48 Received Heat Transfer 264 | . 219 45 Siege Activations . | . . . Martial Activations . | . . . Shielding Activations . | . . . Robots Disrupted . | . . . Combat Hostiles . | . . . Robots Corrupted . | . . . Combat Hostiles . | . . . Parts Fried 7 | 2 5 . Impact Corruptions . | . . . Robots Melted . | . . . Combat Hostiles . | . . . Parts Melted . | . . . Heat Transferred 322 | . 100 222 Parts Sabotaged . | . . . Parts Stolen . | . . . Parts Stripped . | . . . Power Chain Reactions 5 | 1 4 . Alert | -11 -10 -10 ------- Run | Yrd Mat Sub Maximum Alert Level . | . . . Low Security (%) 100 | 100 100 . Level 1 . | . . . Level 2 . | . . . Level 3 . | . . . Level 4 . | . . . Level 5 . | . . . High Security . | . . . Max Security . | . . . Peak Influence 121 | 5 121 . Initial . | . . . Average 56 | 1 62 . Influence Increases 572 | 10 492 70 Destroy 0b10 Robot/C 340 | . 280 60 Destroy 0b10 Robot/NC 30 | 10 20 . Destroy Leader 96 | . 86 10 Successful Hack 32 | . 32 . Disable Machine 30 | . 30 . Destroy Structure 29 | . 29 . Partial Spotted 15 | . 15 . Influence Decreases 572 | 10 451 111 Entered New Map 21 | . . 21 Time Decay 481 | 10 421 50 Lost Part 70 | . 30 40 Squads Dispatched 6 | . 6 . Investigation 5 | . 5 . Extermination . | . . . Reinforcement 1 | . 1 . Assault . | . . . Garrison . | . . . Intercept . | . . . Searches Triggered . | . . . Construction Impeded . | . . . Haulers Reinforced . | . . . Active Scanning Responses . | . . . Cargo Convoy Interrupts . | . . . Stealth | -11 -10 -10 --------- Run | Yrd Mat Sub Distress Signals . | . . . Communications Jammed . | . . . Distress Signals . | . . . Times Spotted 25 | . 18 7 Peak Tracking Total 4 | . 3 4 Tactical Retreats . | . . . Traps | -11 -10 -10 ------- Run | Yrd Mat Sub Traps Triggered 1 | . 1 . Indirectly . | . . . Trap Hack Attempts 21 | . 21 . Triggered . | . . . Disarmed 1 | . 1 . Reprogrammed . | . . . Reused . | . . . Traps Extracted . | . . . Installed . | . . . Triggered . | . . . Machines | -11 -10 -10 ---------- Run | Yrd Mat Sub Machines Disabled 2 | . 2 . Max in Single Turn 1 | . 1 . Machines Repaired . | . . . Machines Dismantled . | . . . Machines Sabotaged . | . . . Overloaded Fab Kills . | . . . Hacking | -11 -10 -10 --------- Run | Yrd Mat Sub Machines Accessed 7 | . 7 . Terminals 7 | . 7 . Fabricators . | . . . Repair Stations . | . . . Recycling Units . | . . . Scanalyzers . | . . . Garrison Access . | . . . Total Hacks 28 | . 28 . Successful 10 | . 10 . Failed 18 | . 18 . Catastrophic 2 | . 2 . Database Lockouts . | . . . Manual 10 | . 10 . Terminals 28 | . 28 . Fabricators . | . . . Repair Stations . | . . . Recycling Units . | . . . Scanalyzers . | . . . Garrison Access . | . . . Terminal Hacks 10 | . 10 . Prototype ID Bank 3 | . 3 . Level Access Points 1 | . 1 . Emergency Access Points 1 | . 1 . Terminal Index 1 | . 1 . Hauler Manifests 1 | . 1 . Registered Components 1 | . 1 . Zone Layout 2 | . 2 . Fabricator Hacks . | . . . Repair Station Hacks . | . . . Recycling Unit Hacks . | . . . Scanalyzer . | . . . Garrison Access Hacks . | . . . Unauthorized Hacks . | . . . Terminals . | . . . Fabricators . | . . . Repair Stations . | . . . Recycling Units . | . . . Scanalyzers . | . . . Garrison Access . | . . . Data Cores Recovered . | . . . Used . | . . . Hacking Detections 7 | . 7 . Full Trace Events 5 | . 5 . Feedback Events 1 | . 1 . Corruption 1 | . 1 . Feedback Blocked . | . . . Robot Schematics Acquired . | . . . Robots Built . | . . . Authchips . | . . . Time . | . . . Total Robot Build Rating . | . . . Part Schematics Acquired . | . . . Parts Built . | . . . Authchips . | . . . Time . | . . . Total Part Build Rating . | . . . Part Studies Acquired . | . . . Parts Repaired . | . . . Time . | . . . Parts Recycled . | . . . Recycled Matter . | . . . Retrieved Matter . | . . . Retrieved Components . | . . . Parts Scanalyzed . | . . . Part Schematics Acquired . | . . . Parts Damaged . | . . . Bothacking | -11 -10 -10 ------------ Run | Yrd Mat Sub Used RIF Installer . | . . . Robots Hacked 1 | . 1 . Non-combat 1 | . 1 . Combat . | . . . Robot Hacks Applied 1 | . 1 . no_distress 1 | . 1 . Relay Couplers Released . | . . . Fabnet Peak Effective % . | . . . Robots Rewired . | . . . Allies Hacked . | . . . Hacks Repelled . | . . . Allies | -11 -10 -10 -------- Run | Yrd Mat Sub Total Allies . | . . . Largest Group . | . . . Highest-Rated Group . | . . . Highest-Rated Ally . | . . . Total Orders . | . . . Ally Attacks . | . . . Total Damage . | . . . Kills . | . . . Allies Corrupted . | . . . Allies Melted . | . . . Intel | -11 -10 -10 ------- Run | Yrd Mat Sub Active Infowar (turns) 64 | 16 28 20 Terrain 44 | 16 28 . Machine Analysis 20 | . . 20 Robot Analysis Total . | . . . Derelict Logs Recovered . | . . . Drone Launches . | . . . Drone Recoveries . | . . . Exploration | -11 -10 -10 ------------- Run | Yrd Mat Sub Turns Passed 1551 | 109 1119 323 Spaces Moved 911 | 47 737 127 Core 9 | 9 . . Treads . | . . . Legs 902 | 38 737 127 Wheels . | . . . Hover . | . . . Flight . | . . . Fastest Speed 50 | 50 120 120 Average Speed 128 | 129 120 180 Slowest Speed 250 | 250 120 190 Overloaded Moves . | . . . Propulsion Burnouts . | . . . Robots Hopped . | . . . Potential Cave-ins 2 | . 2 . Cave-ins Triggered 1 | . 1 . Exploration Rate (%) 35 | 5 92 9 Regions Visited 2 Branch Regions 1 Pre-discovered Areas . | . . . Known Exits Taken . | . . . Unknown Exits Taken 2 | 1 1 . Scrap Searched . | . . . Spaces Dug 7 | . 7 . Terrain Destroyed 39 | 4 29 6 Melee . | . . . Projectile 7 | . 7 . AOE 32 | 4 22 6 Terrain Rammed . | . . . Walls Destroyed . | . . . Machines Disabled . | . . . Actions | -11 -10 -10 --------- Run | Yrd Mat Sub Total 1137 | 69 878 190 Wait 64 | . 29 35 Move 908 | 46 735 127 Hop . | . . . Pick Up 19 | 3 15 1 Fast Attach 8 | 7 1 . Attach 6 | . 2 4 Detach . | . . . Swap 10 | . 9 1 Drop 12 | . 12 . Fire 83 | 11 52 20 Melee 1 | . 1 . Ram . | . . . Kick 2 | 2 . . Crush . | . . . Escape Stasis 1 | . 1 . Rewire 2 | . . 2 Trap 21 | . 21 . Miscellaneous . | . . . Route ------- -11/Scrapyard -10/Materials (discovered 5 exits: *Mat x3 / [*Min] / [*Sub]) -10/Subcaves History --------- Turn | Location | Event 2 | -11/Scrapyard | Met Revision 17 14 | -11/Scrapyard | Discovered new exit (range 15) 110 | -11/Scrapyard | Entered Materials 280 | -10/Materials | Identified exit to Materials 302 | -10/Materials | Build established: Mutant 1015 | -10/Materials | Discovered new exit (range 16) 1095 | -10/Materials | Crushed by falling debris 1096 | -10/Materials | Core integrity fell below 50% 1208 | -10/Materials | Discovered new exit (range 7) 1229 | -10/Materials | Entered Subcaves 1230 | -10/Subcaves | Approached by a straggling Scientist 1543 | -10/Subcaves | A Subdweller sparked back to life 1543 | -10/Subcaves | A Subdweller sparked back to life 1543 | -10/Subcaves | A Subdweller sparked back to life 1548 | -10/Subcaves | Core integrity fell below 20% 1552 | -10/Subcaves | Destroyed by HM-YTV(R) with Subdweller Laser Last Messages --------------- repair. 01524_ Flight Unit fries itself beyond repair. 01524_ Subatomizers dissect the Tech Extrapolator. 01529_ Tech Extrapolator violently self-destructs. 01531_ Acquired Machine Analyzer. 01534_ 2SCXOVEH>RBR>U2P9XYVN% TVFXJ8RY, 01534_ Acquired 20 matter. 01543_ N7-ZLL(R) creaks and sparks as it begins to move. 01543_ KJ-W35(R) creaks and sparks as it begins to move. 01543_ RM-O0G(R) creaks and sparks as it begins to move. 01548_ Aluminum Leg destroyed. 01549_ Ion Engine destroyed. 01549_ Aluminum Leg destroyed. 01552_ N7-ZLL(R) affixes Scrap Shield Fragment to Scrap Shield. Map ----- +----------------------------------------------------+ | ?### ### ##????????????????????????????????????? | | ???##### ## #????????????????????????????????????? | | ??????# ##? #????????????????????????????????????? | | ??????## #? #????????????????????????????????????? | | ???????# #?##????????????????????????????????????? | | ??????## #???????????????????????????????????????? | | ?????## ##???????????????????????????????????????? | | ????## ##????????????????????????????????????????? | | ???## ##?????????????????????????????????????????? | | ??## #??????????????????????????????????????????? | | ?## ###??????????????????????????????????????????? | | ?# ##????????????????????????????????????????????? | | ?## #????????????????????????????????????????????? | | ??# #????????????????????????????????????????????? | | ?## #????????????????????????????????????????????? | | ## ##????????????????????????????????????????????? | | # ##?????????????????????????????????????????????? | | ##??????????????????????????????????? ?????????? | | ##?????????????????????????????????### ????????? | | #??????????????????????######????? ?????????? | | #???????????????? ?????#""# ?????? ??????????? | | ????????????????? ???? " ????? #??????????? | | #???????????????? ???# ##???? #??????????? | | ##??????????????? ?## #?? ???????????? | | ##?????????????? ??# ## #????????????? | | #%##????????????? #???#@ ## #????????????? | | ## ##???????????? ##### R R # #???????????? | | # # ##????#????## ## #??????????????? | | #### ##???# ???# #?# R ##??????????????? | | ?# ###?# #### ??# R #???????????????? | | ?##### #?## ## #??## %% ##???????????????? | | ?????# ### #???# # ####????????????????? | | ?????### ## ##### ###???????????????????? | | ??????# # # ## ## ## #?????????????????????? | | ?????# ###"# #?????????????????????? | | ?????##??# ##?????????????????????? | | ?????????#"## ### ## #??????????????????????? | | ?????????# # ##?####### #??????????????????????? | | ?????????## #?????????# #??????????????????????? | | ??????????##??????????# #??????????????????????? | | ??????????????????????## #??????????????????????? | | ???????????????????????####??????????????????????? | | ?????????????????????????????????????????????????? | | ?????????????????????????????????????????????????? | | ?????????????????????????????????????????????????? | | ?????????????????????????????????????????????????? | | ?????????????????????????????????????????????????? | | ?????????????????????????????????????????????????? | | ?????????????????????????????????????????????????? | | ?????????????????????????????????????????????????? | +----------------------------------------------------+ Best States ------------- Heat Dissipation 47 Energy Generation 10 Energy Capacity 250 Matter Stores 300 Matter Capacity 300 Sight Range 16 Terrain Scan Range 16 Terrain Scan Density 10 Evasion (%) 55 Item Schematics ----------------- None Robot Schematics ------------------ None Fabricated ------------ Nothing Repaired ---------- Nothing Studied --------- None Alien Tech Used ----------------- None Achievements -------------- You Again Challenges ------------ None Game ------ Seed DataPiercingWarhead Manual? 0 Play Time 00:20:13 Cumulative 49.4 hours Start 2025.11.03 @ 20:54:37 End 2025.11.03 @ 21:13:10 Sessions 1 Manual Loads 0 Difficulty Rogue Special Mode None Game No. 47 Rogue 47 Adventurer 0 Explorer 0 Win Type - Total 1 Types 1/0/0/0/0/0/0/0/0/0 Lore% 23 Gallery% 34 Achievement% 27 Wizard Run 0 Options --------- Layout 1 ASCII 0 Keyboard 0 Movement Numpad Keybinds 0 Fullscreen 2 Font 32/SmallcapsGlow Map View 50x35 Zoom Use 0% Tactical HUD 1 Map Filters NONE Filters NONE Steam 1 RUN: e603a9e4-f450-4d7c-a8aa-6ca1e6cfa3d9